Cogmind - Beta 9 @@@ ROGUE MODE // 2019.10.23 @ 01:58:56 // Halloween2019/Abominations Player: Nikolayag Result: Self-destructed Performance ------------- Evolutions (1) 500 Regions Visited (2) 400 Robots Destroyed (19) 95 Value Destroyed (870) 870 Prototype IDs (0) 0 Alien Tech Used (0) 0 Bonus (0) 0 TOTAL SCORE: 1865 Bonus ------- None Cogmind --------- Core Integrity 175/400 Matter 136/300 Energy 100/100 System Corruption 2% Temperature Cool (9) Location -9/Materials Parts ------- Power (1) Propulsion (2) Utility (4) Heat Sink Small Storage Unit Large Storage Unit Weapon (2) Assault Rifle Inventory (12) Ion Engine Improved Ion Engine Light Treads Wheel Compact Wheel Improved Heat Sink Power Shielding Beam Rifle Particle Gun Assault Rifle Light Cannon Grenade Launcher Peak State ------------ Power Ion Engine Propulsion Light Treads Compact Wheel Utility Heat Sink Small Storage Unit Large Storage Unit Light Armor Plating Weapon Assault Rifle Light Assault Rifle Inventory Ion Engine Light Treads Wheel Compact Wheel Improved Heat Sink Large Battery Power Shielding Particle Gun Assault Rifle Light Cannon Grenade Launcher [Rating: 10] Favorites ----------- Power Ion Engine Engine Ion Engine Propulsion Light Treads Treads Light Treads Wheel Compact Wheel Utility Small Storage Unit Device Heat Sink Storage Small Storage Unit Protection Light Armor Plating Weapon Assault Rifle Ballistic Gun Assault Rifle Launcher Grenade Launcher Build | -11 -10 -9 ------- Run | Scr Mat Mat Slots Evolved 2 | . . 2 Power . | . . . Propulsion . | . . . Utility 2 | . . 2 Weapon . | . . . Parts Attached 22 | 6 8 8 Power 2 | 1 1 . Engine 2 | 1 1 . Core . | . . . Reactor . | . . . Propulsion 4 | 2 2 . Treads 2 | 1 1 . Leg . | . . . Wheel 2 | 1 1 . Hover . | . . . Flight . | . . . Utility 5 | 1 2 2 Device 1 | . . 1 Storage 3 | 1 2 . Processor . | . . . Hackware . | . . . Protection 1 | . . 1 Artifact . | . . . Weapon 11 | 2 3 6 Energy Gun . | . . . Energy Cannon . | . . . Ballistic Gun 8 | 2 3 3 Ballistic Cannon . | . . . Launcher 3 | . . 3 Special Weapon . | . . . Impact Weapon . | . . . Slashing Weapon . | . . . Piercing Weapon . | . . . Special Melee Weapon . | . . . Unidentified Prototypes . | . . . Parts Lost 4 | . 2 2 Power . | . . . Propulsion 2 | . 1 1 Utility 1 | . . 1 Weapon 1 | . 1 . Highest Loss Streak 2 | . 1 2 Average Slot Usage (%) 93 | . 94 91 Engine 12 | . 12 10 Treads 13 | . 14 10 Wheel 12 | . 13 10 Device 1 | . . 8 Storage 24 | . 25 22 Protection 1 | . . 7 Ballistic Gun 25 | . 27 19 Naked Turns . | . . . Heaviest Build 33 | 13 29 33 Greatest Support 20 | 20 20 16 Greatest Overweight (x) 2 | . 1 2 Average Overweight (x) . | . . 1 Largest Inventory Capacity 12 | 6 12 12 Average Capacity 10 | 5 10 12 Most Carried 12 | 4 12 12 Average Carried 8 | 2 8 11 Final Capacity 12 | . . 12 Final Carried 12 | . . 12 Class Distribution -------------------- 100% | Mutant Dominant Class ---------------- Mutant | -10/Materials Mutant | -9/Materials Resources | -11 -10 -9 ----------- Run | Scr Mat Mat Matter Collected 700 | 127 351 222 Remotely . | . . . Salvage Created 683 | 80 335 268 Parts 52 | 4 20 28 Haulers Intercepted . | . . . Recyclers Shooed . | . . . Parts Field Recycled . | . . . Retrieved Matter . | . . . Parts Self-Destructed . | . . . Prevented . | . . . Kills | -11 -10 -9 ------- Run | Scr Mat Mat Combat Hostiles Destroyed 15 | . 7 8 Guns 9 | . 7 2 AOE 6 | . . 6 Classes Destroyed 5 | 2 3 . Worker 2 | . 1 1 Tunneler 1 | 1 . . Recycler 1 | 1 . . Grunt 3 | . 1 2 Abomination 12 | . 6 6 Best Kill Streak 4 | 2 3 4 Combat Bots Only 4 | . 2 4 Max Kills in Single Turn 2 | 1 1 2 Gunslinging . | . . . Exploded 1 | . . 1 Melee . | . . . Uniques/NPCs Destroyed . | . . . Combat | -11 -10 -9 -------- Run | Scr Mat Mat Damage Taken 1636 | . 603 1033 Core 324 | . 99 225 Absorbed by Shields . | . . . Core Remaining (%) 80 | 100 60 . Volleys Fired 82 | 8 33 41 Largest 2 | 2 2 2 Hottest 40 | 40 40 40 Shots Fired 151 | 16 66 69 Gun 138 | 16 66 56 Cannon . | . . . Launcher 13 | . . 13 Special . | . . . Kinetic 138 | 16 66 56 Thermal . | . . . Explosive 13 | . . 13 Electromagnetic . | . . . Robot Hit Streak 14 | 5 11 14 Robot Miss Streak 2 | 2 2 2 Penetration Max . | . . . Secondary Targets . | . . . Shots Hit Robots 104 | 10 45 49 Core Hits 47 | 3 20 24 Critical Hits 1 | . . 1 Critical Kills . | . . . Critical Parts Destroyed 1 | . . 1 Melee Attacks . | . . . Impact . | . . . Slashing . | . . . Piercing . | . . . Sneak Attacks . | . . . Combat Hostiles . | . . . Follow-up Attacks . | . . . Damage Inflicted 1816 | 127 531 1158 Guns 1061 | 127 531 403 Cannons . | . . . Explosions 755 | . . 755 Melee . | . . . Ramming . | . . . Kinetic 1061 | 127 531 403 Thermal . | . . . Explosive 741 | . . 741 Electromagnetic 14 | . . 14 Impact . | . . . Slashing . | . . . Piercing . | . . . Highest Corruption 2 | . . 2 Average Corruption 1 | . . 1 Corruption Purged . | . . . Overload Shots . | . . . Overflow Damage 7 | . . 7 Projectiles . | . . . Explosions 7 | . . 7 Melee . | . . . Knockbacks . | . . . Impact . | . . . Kinetic . | . . . Secondary . | . . . Self-Inflicted Damage 111 | . . 111 Shots 6 | . . 6 Rammed . | . . . Targets Rammed . | . . . Kicked . | . . . Crushed . | . . . Highest Temperature 12 | . 12 12 Average Temperature 6 | . 8 5 Received Heat Transfer 399 | . 48 351 Siege Activations . | . . . Robots Corrupted . | . . . Combat Hostiles . | . . . Parts Fried . | . . . Impact Corruptions . | . . . Robots Melted . | . . . Combat Hostiles . | . . . Parts Melted . | . . . Heat Transferred . | . . . Parts Sabotaged . | . . . Parts Stolen . | . . . Parts Stripped . | . . . Power Chain Reactions . | . . . Missiles Intercepted . | . . . Alert | -11 -10 -9 ------- Run | Scr Mat Mat Peak Influence 124 | 10 49 124 Average Influence 26 | 2 14 75 Maximum Alert Level . | . . . Low Security (%) 100 | . . . Level 1 . | . . . Level 2 . | . . . Level 3 . | . . . Level 4 . | . . . Level 5 . | . . . High Security . | . . . Max Security . | . . . Squads Dispatched 5 | . 2 3 Investigation 3 | . 2 1 Extermination . | . . . Reinforcement 2 | . . 2 Assault . | . . . Garrison . | . . . Intercept . | . . . Construction Impeded . | . . . Haulers Reinforced . | . . . Stealth | -11 -10 -9 --------- Run | Scr Mat Mat Distress Signals 12 | . 1 11 Communications Jammed . | . . . Distress Signals . | . . . Times Spotted 23 | . 10 13 Peak Tracking Total 5 | . 2 5 Tactical Retreats 2 | . 2 . Traps | -11 -10 -9 ------- Run | Scr Mat Mat Traps Triggered . | . . . Indirectly . | . . . Trap Hack Attempts . | . . . Triggered . | . . . Disarmed . | . . . Reprogrammed . | . . . Reused . | . . . Traps Extracted . | . . . Installed . | . . . Triggered . | . . . Machines | -11 -10 -9 ---------- Run | Scr Mat Mat Machines Disabled 2 | . . 2 Max in Single Turn 1 | . . 1 Machines Sabotaged . | . . . Garrisons Compromised . | . . . Overloaded Fab Kills . | . . . Fab Network Shutdowns . | . . . Hacking | -11 -10 -9 --------- Run | Scr Mat Mat Machines Accessed 8 | . 6 2 Terminals 7 | . 5 2 Fabricators . | . . . Repair Stations . | . . . Recycling Units 1 | . 1 . Scanalyzers . | . . . Garrison Access . | . . . Total Hacks 28 | . 17 11 Successful 17 | . 11 6 Failed 11 | . 6 5 Catastrophic 2 | . 1 1 Database Lockouts . | . . . Manual 26 | . 15 11 Terminals 27 | . 16 11 Fabricators . | . . . Repair Stations . | . . . Recycling Units 1 | . 1 . Scanalyzers . | . . . Garrison Access . | . . . Terminal Hacks 7 | . 5 2 Level Access Points 1 | . 1 . Hauler Manifests 1 | . 1 . Zone Layout 5 | . 3 2 Fabricator Hacks . | . . . Repair Station Hacks . | . . . Recycling Unit Hacks 1 | . 1 . Retrieve Components 1 | . 1 . Scanalyzer . | . . . Garrison Access Hacks . | . . . Unauthorized Hacks 19 | . 10 9 Terminals 9 | . 5 4 Track 3 | . 2 1 Botnet 4 | . 2 2 Operators 2 | . 1 1 Fabricators . | . . . Repair Stations . | . . . Recycling Units . | . . . Scanalyzers . | . . . Garrison Access . | . . . Data Cores Recovered . | . . . Used . | . . . Hacking Detections 6 | . 4 2 Full Trace Events . | . . . Feedback Events . | . . . Feedback Blocked . | . . . Robot Schematics Acquired . | . . . Robots Built . | . . . Matter . | . . . Time . | . . . Total Robot Build Rating . | . . . Part Schematics Acquired . | . . . Parts Built . | . . . Matter . | . . . Time . | . . . Total Part Build Rating . | . . . Parts Repaired . | . . . Time . | . . . Parts Recycled . | . . . Recycled Matter . | . . . Retrieved Matter . | . . . Retrieved Components 9 | . 9 . Parts Scanalyzed . | . . . Part Schematics Acquired . | . . . Parts Damaged . | . . . Bothacking | -11 -10 -9 ------------ Run | Scr Mat Mat Used RIF Installer . | . . . Robots Hacked . | . . . Non-combat . | . . . Combat . | . . . Robot Hacks Applied . | . . . Relay Couplers Released . | . . . Robots Rewired . | . . . Allies Hacked . | . . . Hacks Repelled . | . . . Allies | -11 -10 -9 -------- Run | Scr Mat Mat Total Allies . | . . . Largest Group . | . . . Highest-Rated Group . | . . . Highest-Rated Ally . | . . . Total Orders . | . . . Ally Attacks . | . . . Total Damage . | . . . Kills . | . . . Allies Corrupted . | . . . Allies Melted . | . . . Intel | -11 -10 -9 ------- Run | Scr Mat Mat Robot Analysis Total . | . . . Derelict Logs Recovered . | . . . Drone Launches . | . . . Drone Recoveries . | . . . Exploration | -11 -10 -9 ------------- Run | Scr Mat Mat Turns Passed 1269 | 112 882 275 Spaces Moved 780 | 55 608 117 Core 3 | 3 . . Treads 150 | 38 112 . Legs . | . . . Wheels 627 | 14 496 117 Hover . | . . . Flight . | . . . Fastest Speed 50 | 50 110 110 Average Speed 119 | 138 119 111 Slowest Speed 180 | 160 180 120 Overloaded Moves . | . . . Propulsion Burnouts . | . . . Robots Hopped . | . . . Cave-ins Triggered 1 | . 1 . Exploration Rate (%) 40 | 6 93 22 Regions Visited 2 Branch Regions . Pre-discovered Areas . | . . . Known Exits Taken 1 | . 1 . Unknown Exits Taken 1 | 1 . . Scrap Searched . | . . . Spaces Dug . | . . . Terrain Destroyed 55 | . . 55 Melee . | . . . Projectile . | . . . AOE 55 | . . 55 Actions | -11 -10 -9 --------- Run | Scr Mat Mat Total 965 | 72 698 195 Wait 61 | . 36 25 Move 778 | 54 607 117 Hop . | . . . Pick Up 18 | 4 11 3 Fast Attach 11 | 6 4 1 Attach 4 | . 3 1 Detach . | . . . Swap 7 | . 1 6 Drop 4 | . 3 1 Fire 82 | 8 33 41 Melee . | . . . Ram . | . . . Kick . | . . . Crush . | . . . Escape Stasis . | . . . Rewire . | . . . Trap . | . . . Miscellaneous . | . . . Route ------- -11/Scrapyard -10/Materials (discovered 3 exits: *Mat x3) -9/Materials (discovered 1 exit: [Mat]) History --------- Turn | Location | Event 2 | -11/Scrapyard | Met Revision 17 22 | -11/Scrapyard | Discovered new exit (range 14) 113 | -11/Scrapyard | Entered Materials 129 | -10/Materials | Identified exit to Materials 318 | -10/Materials | Build established: Mutant 323 | -10/Materials | Crushed by falling debris 670 | -10/Materials | Discovered new exit (range 13) 821 | -10/Materials | Discovered new exit (range 15) 995 | -10/Materials | Entered another Materials area 995 | -9/Materials | Evolved 2 slots: Utility x2 1138 | -9/Materials | Discovered new exit (range 13) 1217 | -9/Materials | Discovered new exit (range 16) 1267 | -9/Materials | Core integrity fell below 50% 1270 | -9/Materials | Self-destructed Last Messages --------------- 01246_ The unstable cave ceiling collapses. 01248_ Lesser Abomination spits out Sml. Storage Unit. 01248_ Lesser Abomination feeds off Hungry Anomaly, taking Med. Storage Unit. 01250_ Hungry Anomaly eats Sml. Storage Unit. 01251_ Destroyed Integration Mediator. 01252_ Neutrino Reactor explodes. 01252_ Lesser Abomination feeds off Hungry Anomaly, taking Signal Interpreter. 01252_ Lesser Abomination spits out Lgt. Treads. 01252_ Lesser Abomination feeds off Hungry Anomaly, taking Lgt. Treads. 01268_ R-06 Scavenger hit by a wave of energy. 01268_ Tractor Beam ripped off. 01268_ Com. Wheel ripped off. 01268_ Hit by a wave of energy. 01268_ Lgt. Assault Rifle ripped off. 01268_ Ion Engine ripped off. 01268_ Lgt. Treads ripped off. 01268_ Com. Wheel destroyed. 01268_ R-06 Scavenger collects Com. Wheel. Map ----- +----------------------------------------------------+ | ?????????????????????????????????????????????????? | | ?????????????????????????????????????????????????? | | ?????????????????????????????????????????????????? | | ?????????????????????????????????????????????????? | | ?????????????????????????????????????????????????? | | ?????????????????????????????????????????????????? | | ?????????????????????????????????????????????????? | | ????????????????????????######"# #???# ????? | | ????????????????????????# """ " < #???# ????? | | ????????????????????????# "R" " #########+????? | | ????????????????????????" " " " ????? | | ????????????????????????" " ????? | | ????????????????????????# # T ????? | | ????????????????????????# # ????? | | ??????????????#####?????############ ????? | | ?????????????? #????????????????# ????? | | ??????????????""" ###########??????# ????? | | ??????????????""" # #??????# ????? | | ??????????????""" # ######## ????? | | ?????????????? # """ """ # # " " ???? | | ?????????????? # """ """ # # """ #??? | | ??????????????+#### """ """ # # """ ???? | | ?????????????? =+ =%! # ! # ????? | | ??????????????##### ] #== # ????? | | ??????????????????# !%!!|%A # """ ????? | | ??????????????#???#######@# ##% """ ????? | | ??????????????#?????##! =[* % """ #??? | | ??????????????#?????## % A #??? | | ??????????????#??##### n % #??? | | ??????????????#??# r ;;;####/### ########??? | | ??????????????#??# ; # # %%#???# ????? | | ??????????????#??#/ ; ## /// # #???# ????? | | ??????????????#??# / ;### / / # ##### ????? | | ??????????????#??# %;# # // # + ????? | | ??????????????#??# %;# # # ##### ????? | | ?????????## ??" ?#;#;; #### # #???# ????? | | ????????# ###;;;; ########### ##### ????? | | ????????# = [ % % %% ##????????# # ????? | | ????????+ <% % % ##?????????????????????? | | ????????# !// ##?????????????????????? | | ????????# ####### % ###????????????????????? | | ?????????#+#??#########+#####????????????????????? | | ??????????????# [% #????????????????????? | | ??????????????## """ == #????????????????????? | | ???????????????# """ % "##########??????????? | | ???????????????# """ [= " T #??????????? | | ???????????????# [" #??????????? | | ???????????????##########"""" #??????????? | | ????????????????????????# [" % [ #??????????? | | ???????????????########## %"% [ #??????????? | +----------------------------------------------------+ Best States ------------- Heat Dissipation 38 Energy Generation 10 Energy Capacity 250 Matter Stores 290 Matter Capacity 300 Sight Range 16 Terrain Scan Density 10 Armor Coverage 150 Evasion (%) 40 Recoil Reduction 1 Item Schematics ----------------- None Robot Schematics ------------------ None Fabricated ------------ Nothing Alien Tech Used ----------------- None Achievements -------------- None Challenges ------------ None Game ------ Seed ShockXenonLoader Manual? 0 Play Time 00:14:03 Cumulative 158.5 hours Start 2019.10.23 @ 01:48:27 End 2019.10.23 @ 01:58:56 Sessions 1 Manual Loads 0 Difficulty Rogue Special Mode Halloween2019/Abominations Game No. 163 Rogue 163 Adventurer 0 Explorer 0 Win Type - Total 3 Types 3/0/0/0/0/0/0 Lore% 48 Gallery% 67 Achievement% 42 Wizard Run 0 Options --------- ASCII 0 Keyboard 1 Movement Numpad Keybinds 0 Fullscreen 1 Font 18/SmallcapsGlow Map View 76x50 Tactical HUD 1 Map Filters NONE Filters NONE Steam 1 RUN: 305ccf9d-b952-4e6e-8898-f36215289411